[Event "*** Titled Tuesday Blitz"]
[Site "Chess.com"]
[Date "2021.02.16"]
[Round "6"]
[White "novocane"]
[Black "anskam"]
[Result "1-0"]
[WhiteElo "2254"]
[BlackElo "1717"]
[TimeControl "180+1"]
[EndTime "11:08:32 PST"]
[Termination "novocane won on time"]

1. d4 {[%clk 0:03:00.9]} 1... Nf6 {[%clk 0:02:58.8]} 2. c4 {[%clk 0:03:00.3]}
2... g6 {[%clk 0:02:58.5]} 3. Nc3 {[%clk 0:03:00.4]} 3... Bg7 {[%clk 0:02:57.1]}
4. e4 {[%clk 0:03:00.4]} 4... d6 {[%clk 0:02:56.7]} 5. f3 {[%clk 0:03:00.6]}
5... Nbd7 {[%clk 0:02:54.7]} 6. Bg5 {[%clk 0:03:00.3]} 6... h6 {[%clk
0:02:51.9]} 7. Be3 {[%clk 0:02:57.2]} 7... e5 {[%clk 0:02:50.7]} 8. d5 {[%clk
0:02:55.1]} 8... O-O {[%clk 0:02:47.6]} 9. Qd2 {[%clk 0:02:54.1]} 9... Kh7
{[%clk 0:02:46.1]} 10. h4 {[%clk 0:02:52.9]} 10... Ng8 {[%clk 0:02:42.6]} 11. h5
{[%clk 0:02:50.9]} 11... g5 {[%clk 0:02:41.1]} 12. g4 {[%clk 0:02:50.1]} 12...
f6 {[%clk 0:02:40]} 13. Nge2 {[%clk 0:02:46.4]} 13... b6 {[%clk 0:02:38.6]} 14.
Ng3 {[%clk 0:02:45.2]} 14... Nc5 {[%clk 0:02:38.1]} 15. b4 {[%clk 0:02:36.8]}
15... Nb7 {[%clk 0:02:30.4]} 16. Nf5 {[%clk 0:02:32.2]} 16... Bxf5 {[%clk
0:02:29.2]} 17. exf5 {[%clk 0:02:32.2]} 17... Qd7 {[%clk 0:02:26.8]} 18. Bd3
{[%clk 0:02:25.1]} 18... Kh8 {[%clk 0:02:24.8]} 19. Ne4 {[%clk 0:02:21.3]} 19...
Ne7 {[%clk 0:02:20.5]} 20. O-O {[%clk 0:02:12.7]} 20... a5 {[%clk 0:02:19.1]}
21. a3 {[%clk 0:02:09.7]} 21... Ra7 {[%clk 0:02:02.2]} 22. Nc3 {[%clk 0:02:01]}
22... axb4 {[%clk 0:01:56.1]} 23. axb4 {[%clk 0:02:00]} 23... Rfa8 {[%clk
0:01:55]} 24. Qb2 {[%clk 0:01:57.4]} 24... Qc8 {[%clk 0:01:23.9]} 25. Nb5 {[%clk
0:01:46.6]} 25... Ra4 {[%clk 0:01:16.8]} 26. Rxa4 {[%clk 0:01:42.6]} 26... Rxa4
{[%clk 0:01:15.2]} 27. Ra1 {[%clk 0:01:41.2]} 27... Rxa1+ {[%clk 0:01:12.3]} 28.
Qxa1 {[%clk 0:01:40.5]} 28... Qb8 {[%clk 0:01:04.6]} 29. Qa7 {[%clk 0:01:33.2]}
29... Qxa7 {[%clk 0:01:02.3]} 30. Nxa7 {[%clk 0:01:34.1]} 30... Kg8 {[%clk
0:00:59.6]} 31. Be4 {[%clk 0:01:03.9]} 31... Nd8 {[%clk 0:00:48]} 32. Nb5 {[%clk
0:01:02.8]} 32... c5 {[%clk 0:00:27.5]} 33. Nxd6 {[%clk 0:00:50.3]} 33... cxb4
{[%clk 0:00:25.6]} 34. Bxb6 {[%clk 0:00:49.1]} 34... Nf7 {[%clk 0:00:22.8]} 35.
Nxf7 {[%clk 0:00:26.8]} 35... Kxf7 {[%clk 0:00:22.2]} 36. d6 {[%clk 0:00:20.6]}
36... Nc8 {[%clk 0:00:19]} 37. c5 {[%clk 0:00:18.3]} 37... Nxb6 {[%clk
0:00:03.4]} 38. cxb6 {[%clk 0:00:18.2]} 1-0

[Event "*** Titled Tuesday Blitz"]
[Site "Chess.com"]
[Date "2021.02.16"]
[Round "6"]
[White "DarZay"]
[Black "Euge_chess"]
[Result "1-0"]
[WhiteElo "2158"]
[BlackElo "2093"]
[TimeControl "180+1"]
[EndTime "11:08:33 PST"]
[Termination "DarZay won on time"]

1. e4 {[%clk 0:03:00.9]} 1... e5 {[%clk 0:02:59.7]} 2. Nf3 {[%clk 0:03:00.6]}
2... Nc6 {[%clk 0:03:00.1]} 3. Bc4 {[%clk 0:02:59.9]} 3... Nf6 {[%clk
0:03:00.4]} 4. d3 {[%clk 0:02:58.3]} 4... d5 {[%clk 0:03:00.3]} 5. exd5 {[%clk
0:02:55]} 5... Nxd5 {[%clk 0:03:01.2]} 6. O-O {[%clk 0:02:50]} 6... Bg4 {[%clk
0:03:00.8]} 7. Nbd2 {[%clk 0:02:48.5]} 7... Be7 {[%clk 0:02:54.8]} 8. h3 {[%clk
0:02:44.9]} 8... Bh5 {[%clk 0:02:54.1]} 9. Ne4 {[%clk 0:02:41.8]} 9... O-O
{[%clk 0:02:47.9]} 10. Ng3 {[%clk 0:02:41.7]} 10... Bg6 {[%clk 0:02:45.2]} 11.
Qe2 {[%clk 0:02:37.7]} 11... Bf6 {[%clk 0:02:40.5]} 12. Nh2 {[%clk 0:02:31.4]}
12... Nd4 {[%clk 0:02:37.9]} 13. Qd1 {[%clk 0:02:28.2]} 13... b5 {[%clk
0:02:30.7]} 14. Bxd5 {[%clk 0:02:26.4]} 14... Qxd5 {[%clk 0:02:30.1]} 15. c3
{[%clk 0:02:25.8]} 15... Ne6 {[%clk 0:02:25.6]} 16. Ng4 {[%clk 0:02:21.2]} 16...
Qxd3 {[%clk 0:02:22.4]} 17. Nxf6+ {[%clk 0:02:14.7]} 17... gxf6 {[%clk
0:02:21.2]} 18. Qg4 {[%clk 0:02:10.9]} 18... f5 {[%clk 0:02:05.8]} 19. Qh4
{[%clk 0:02:02.6]} 19... Qd8 {[%clk 0:01:48]} 20. Qb4 {[%clk 0:01:58.4]} 20...
a6 {[%clk 0:01:41.7]} 21. Bh6 {[%clk 0:01:56.9]} 21... Ng7 {[%clk 0:01:39.2]}
22. Rad1 {[%clk 0:01:47]} 22... Qf6 {[%clk 0:01:36.4]} 23. Rd7 {[%clk
0:01:38.7]} 23... f4 {[%clk 0:01:33.4]} 24. Ne4 {[%clk 0:01:12.2]} 24... Qc6
{[%clk 0:01:12]} 25. Nc5 {[%clk 0:00:40.6]} 25... a5 {[%clk 0:01:11.1]} 26. Qa3
{[%clk 0:00:36.9]} 26... Bf5 {[%clk 0:01:02.8]} 27. Bxg7 {[%clk 0:00:35.6]}
27... Kxg7 {[%clk 0:01:03.7]} 28. Re7 {[%clk 0:00:30.2]} 28... Qd6 {[%clk
0:00:56]} 29. Nb7 {[%clk 0:00:19.6]} 29... Qxa3 {[%clk 0:00:40.5]} 30. bxa3
{[%clk 0:00:19.6]} 30... c6 {[%clk 0:00:12.1]} 31. Rxe5 {[%clk 0:00:18.3]} 31...
Bg6 {[%clk 0:00:11]} 32. Nc5 {[%clk 0:00:14.8]} 32... Rfd8 {[%clk 0:00:09.9]}
33. Rfe1 {[%clk 0:00:13.1]} 33... Rd2 {[%clk 0:00:09.3]} 34. R1e2 {[%clk
0:00:11.3]} 34... Rd1+ {[%clk 0:00:09.3]} 35. Kh2 {[%clk 0:00:11.1]} 35... Rc1
{[%clk 0:00:10.2]} 36. Re7 {[%clk 0:00:09.4]} 36... Rxc3 {[%clk 0:00:09]} 37.
Ne6+ {[%clk 0:00:09.3]} 37... Kf6 {[%clk 0:00:00.9]} 38. Nxf4 {[%clk 0:00:08.7]}
1-0

[Event "*** Titled Tuesday Blitz"]
[Site "Chess.com"]
[Date "2021.02.16"]
[Round "6"]
[White "goldihouse"]
[Black "VladimirBugayev"]
[Result "1-0"]
[WhiteElo "2552"]
[BlackElo "2314"]
[TimeControl "180+1"]
[EndTime "11:08:35 PST"]
[Termination "goldihouse won on time"]

1. c4 {[%clk 0:03:00.9]} 1... c5 {[%clk 0:02:59.2]} 2. g3 {[%clk 0:03:01.1]}
2... g6 {[%clk 0:02:59.3]} 3. Bg2 {[%clk 0:03:02]} 3... Nc6 {[%clk 0:02:59.2]}
4. Nc3 {[%clk 0:03:02.9]} 4... Bg7 {[%clk 0:02:59.5]} 5. a3 {[%clk 0:03:02.9]}
5... d6 {[%clk 0:02:55.5]} 6. Rb1 {[%clk 0:03:02.8]} 6... a5 {[%clk 0:02:55.7]}
7. d3 {[%clk 0:03:02.9]} 7... e5 {[%clk 0:02:53.1]} 8. e3 {[%clk 0:03:02.8]}
8... Nge7 {[%clk 0:02:53.7]} 9. Nge2 {[%clk 0:03:03.4]} 9... O-O {[%clk
0:02:50.4]} 10. O-O {[%clk 0:03:03.3]} 10... Rb8 {[%clk 0:02:32.3]} 11. Bd2
{[%clk 0:03:01.7]} 11... Be6 {[%clk 0:02:26.5]} 12. Qb3 {[%clk 0:03:02.2]} 12...
Bf5 {[%clk 0:02:17.3]} 13. Qc2 {[%clk 0:03:00.9]} 13... Be6 {[%clk 0:02:11.5]}
14. e4 {[%clk 0:03:01.3]} 14... Qd7 {[%clk 0:01:50.1]} 15. Nd5 {[%clk
0:03:00.2]} 15... b6 {[%clk 0:01:35.7]} 16. Rfe1 {[%clk 0:02:44]} 16... b5
{[%clk 0:01:27.6]} 17. b3 {[%clk 0:02:41.3]} 17... b4 {[%clk 0:01:27]} 18. axb4
{[%clk 0:02:41]} 18... Nxb4 {[%clk 0:01:20.1]} 19. Bxb4 {[%clk 0:02:37.9]} 19...
axb4 {[%clk 0:01:19.9]} 20. Ra1 {[%clk 0:02:21.9]} 20... Nc6 {[%clk 0:01:19.2]}
21. Ra6 {[%clk 0:02:20]} 21... f5 {[%clk 0:01:16.9]} 22. Rxc6 {[%clk 0:02:18.3]}
22... Bxd5 {[%clk 0:01:15.5]} 23. exd5 {[%clk 0:02:18.2]} 23... f4 {[%clk
0:01:12.6]} 24. f3 {[%clk 0:01:21.4]} 24... fxg3 {[%clk 0:00:57.6]} 25. hxg3
{[%clk 0:01:20.9]} 25... e4 {[%clk 0:00:54.4]} 26. dxe4 {[%clk 0:01:19.8]} 26...
Ra8 {[%clk 0:00:54.2]} 27. f4 {[%clk 0:00:54.8]} 27... Ra3 {[%clk 0:00:41.6]}
28. Kh2 {[%clk 0:00:50.9]} 28... g5 {[%clk 0:00:30.1]} 29. Qd3 {[%clk
0:00:45.7]} 29... Rfa8 {[%clk 0:00:26.8]} 30. e5 {[%clk 0:00:34]} 30... dxe5
{[%clk 0:00:23.5]} 31. fxg5 {[%clk 0:00:20.4]} 31... Qg4 {[%clk 0:00:15]} 32.
Qf3 {[%clk 0:00:16.1]} 32... Qxg5 {[%clk 0:00:14.5]} 33. d6 {[%clk 0:00:13.8]}
33... Ra2 {[%clk 0:00:14.2]} 34. Rc7 {[%clk 0:00:12.9]} 34... Rf8 {[%clk
0:00:11.9]} 35. Qd5+ {[%clk 0:00:12.8]} 35... Kh8 {[%clk 0:00:12.4]} 36. d7
{[%clk 0:00:13.2]} 36... Qh5+ {[%clk 0:00:10.2]} 37. Kg1 {[%clk 0:00:11.6]}
37... Qg5 {[%clk 0:00:08]} 38. Qe4 {[%clk 0:00:05.4]} 38... Qd2 {[%clk
0:00:05.3]} 39. Rf1 {[%clk 0:00:05.7]} 39... Qxe2 {[%clk 0:00:04.2]} 40. Qxe2
{[%clk 0:00:05.3]} 40... Rxe2 {[%clk 0:00:02.9]} 41. Rc8 {[%clk 0:00:05.4]} 1-0

[Event "*** Titled Tuesday Blitz"]
[Site "Chess.com"]
[Date "2021.02.16"]
[Round "6"]
[White "atalz0"]
[Black "KNCP_719"]
[Result "1-0"]
[WhiteElo "2421"]
[BlackElo "2587"]
[TimeControl "180+1"]
[EndTime "11:08:37 PST"]
[Termination "atalz0 won on time"]

1. d4 {[%clk 0:02:31.1]} 1... d5 {[%clk 0:02:57.8]} 2. c4 {[%clk 0:02:31]} 2...
c6 {[%clk 0:02:58.1]} 3. e3 {[%clk 0:02:31.1]} 3... Nf6 {[%clk 0:02:58.3]} 4.
Nc3 {[%clk 0:02:31]} 4... e6 {[%clk 0:02:58.4]} 5. b3 {[%clk 0:02:30.1]} 5...
Bb4 {[%clk 0:02:58]} 6. Bb2 {[%clk 0:02:30.2]} 6... Ne4 {[%clk 0:02:56.9]} 7.
Ne2 {[%clk 0:02:29.3]} 7... Qh4 {[%clk 0:02:33.7]} 8. g3 {[%clk 0:02:12.4]} 8...
Qf6 {[%clk 0:02:03.4]} 9. f4 {[%clk 0:02:11.4]} 9... Nd7 {[%clk 0:01:16.7]} 10.
Bg2 {[%clk 0:02:10.5]} 10... h5 {[%clk 0:01:13.2]} 11. O-O {[%clk 0:01:47.1]}
11... Nxc3 {[%clk 0:01:12.3]} 12. Bxc3 {[%clk 0:01:37.8]} 12... Bd6 {[%clk
0:01:11.6]} 13. e4 {[%clk 0:01:33.9]} 13... dxe4 {[%clk 0:00:47.9]} 14. d5
{[%clk 0:01:33.6]} 14... Bc5+ {[%clk 0:00:42.1]} 15. Kh1 {[%clk 0:01:27.4]}
15... Qg6 {[%clk 0:00:42]} 16. b4 {[%clk 0:01:11.5]} 16... Be7 {[%clk 0:00:40]}
17. d6 {[%clk 0:01:01]} 17... Bf6 {[%clk 0:00:40.2]} 18. Qc2 {[%clk 0:00:51.8]}
18... Bxc3 {[%clk 0:00:20.4]} 19. Nxc3 {[%clk 0:00:44.4]} 19... f5 {[%clk
0:00:20.2]} 20. Nxe4 {[%clk 0:00:29.2]} 20... fxe4 {[%clk 0:00:20.2]} 21. Bxe4
{[%clk 0:00:30.1]} 21... Qf6 {[%clk 0:00:20.7]} 22. Bg6+ {[%clk 0:00:27.6]}
22... Kf8 {[%clk 0:00:21.1]} 23. f5 {[%clk 0:00:25.5]} 23... e5 {[%clk
0:00:19.9]} 24. c5 {[%clk 0:00:25.3]} 24... h4 {[%clk 0:00:11.6]} 25. g4 {[%clk
0:00:24.2]} 25... a5 {[%clk 0:00:09.7]} 26. a3 {[%clk 0:00:20.3]} 26... Rh6
{[%clk 0:00:05.5]} 27. Rae1 {[%clk 0:00:18.4]} 27... axb4 {[%clk 0:00:04]} 28.
axb4 {[%clk 0:00:19.3]} 28... Ra3 {[%clk 0:00:03.1]} 29. Qd2 {[%clk 0:00:16.1]}
29... Kg8 {[%clk 0:00:02.8]} 30. g5 {[%clk 0:00:15.9]} 30... Qd8 {[%clk
0:00:01.7]} 31. gxh6 {[%clk 0:00:16.2]} 31... h3 {[%clk 0:00:02.1]} 32. h7+
{[%clk 0:00:15.7]} 32... Kh8 {[%clk 0:00:02.1]} 33. f6 {[%clk 0:00:14.8]} 33...
Nxf6 {[%clk 0:00:02.3]} 34. Rxe5 {[%clk 0:00:14.8]} 34... Bg4 {[%clk 0:00:02.4]}
35. Rxf6 {[%clk 0:00:13.4]} 35... gxf6 {[%clk 0:00:02.1]} 36. Re1 {[%clk
0:00:10.4]} 36... Kg7 {[%clk 0:00:01.9]} 37. Bb1 {[%clk 0:00:08.1]} 37... Bf3+
{[%clk 0:00:02.2]} 38. Kg1 {[%clk 0:00:07.7]} 38... Qf8 {[%clk 0:00:01.9]} 39.
Qf2 {[%clk 0:00:06.8]} 39... Bd5 {[%clk 0:00:01.7]} 40. Qh4 {[%clk 0:00:06.1]}
40... Kh8 {[%clk 0:00:01.5]} 41. Re7 {[%clk 0:00:04.7]} 1-0

[Event "*** Titled Tuesday Blitz"]
[Site "Chess.com"]
[Date "2021.02.16"]
[Round "6"]
[White "Balla_Tamas"]
[Black "ybruned"]
[Result "1-0"]
[WhiteElo "2453"]
[BlackElo "2306"]
[TimeControl "180+1"]
[EndTime "11:08:41 PST"]
[Termination "Balla_Tamas won on time"]

1. b3 {[%clk 0:03:00.9]} 1... b6 {[%clk 0:02:59.7]} 2. Bb2 {[%clk 0:02:51.9]}
2... Bb7 {[%clk 0:02:59.4]} 3. f4 {[%clk 0:02:52.5]} 3... e6 {[%clk 0:02:57.1]}
4. Nf3 {[%clk 0:02:48.6]} 4... f5 {[%clk 0:02:53.9]} 5. e3 {[%clk 0:02:46.1]}
5... Nf6 {[%clk 0:02:53.9]} 6. g3 {[%clk 0:02:45.4]} 6... Be7 {[%clk 0:02:48.9]}
7. Bg2 {[%clk 0:02:45.5]} 7... O-O {[%clk 0:02:49.6]} 8. O-O {[%clk 0:02:44.5]}
8... c5 {[%clk 0:02:43.6]} 9. d3 {[%clk 0:02:43.5]} 9... h6 {[%clk 0:02:12.8]}
10. Qe2 {[%clk 0:02:40.3]} 10... d5 {[%clk 0:02:01.7]} 11. Nbd2 {[%clk
0:02:37.6]} 11... Nbd7 {[%clk 0:02:00.3]} 12. Rae1 {[%clk 0:02:33.8]} 12... Re8
{[%clk 0:01:39.5]} 13. c4 {[%clk 0:02:20.7]} 13... Bd6 {[%clk 0:01:21.2]} 14.
Ne5 {[%clk 0:02:18.3]} 14... Qc7 {[%clk 0:01:07.7]} 15. Ndf3 {[%clk 0:01:46.7]}
15... Rad8 {[%clk 0:00:52]} 16. h3 {[%clk 0:01:38.6]} 16... Nh5 {[%clk
0:00:32.7]} 17. Kh2 {[%clk 0:01:36.9]} 17... Nhf6 {[%clk 0:00:31.9]} 18. Qc2
{[%clk 0:01:34.2]} 18... Bxe5 {[%clk 0:00:27.4]} 19. Nxe5 {[%clk 0:01:33.5]}
19... Nxe5 {[%clk 0:00:26.9]} 20. Bxe5 {[%clk 0:01:32.6]} 20... Qf7 {[%clk
0:00:26.9]} 21. Rg1 {[%clk 0:01:18.7]} 21... dxc4 {[%clk 0:00:20.2]} 22. bxc4
{[%clk 0:01:17.1]} 22... Bxg2 {[%clk 0:00:17.9]} 23. Rxg2 {[%clk 0:01:17]} 23...
Nd7 {[%clk 0:00:17.2]} 24. Bc3 {[%clk 0:01:15.5]} 24... e5 {[%clk 0:00:09.6]}
25. Rd2 {[%clk 0:00:54.9]} 25... Re6 {[%clk 0:00:06.5]} 26. Rf1 {[%clk
0:00:44.3]} 26... Rde8 {[%clk 0:00:06.9]} 27. Bb2 {[%clk 0:00:34.3]} 27... exf4
{[%clk 0:00:06.1]} 28. exf4 {[%clk 0:00:34.1]} 28... Nf6 {[%clk 0:00:03.8]} 29.
Be5 {[%clk 0:00:30.1]} 29... Qh5 {[%clk 0:00:03.9]} 30. Kg2 {[%clk 0:00:27.6]}
30... Nd7 {[%clk 0:00:04]} 31. Bc3 {[%clk 0:00:24]} 31... Re2+ {[%clk
0:00:04.6]} 32. Rf2 {[%clk 0:00:24.3]} 32... Rxf2+ {[%clk 0:00:02.2]} 33. Rxf2
{[%clk 0:00:23.9]} 33... Qf7 {[%clk 0:00:02.9]} 34. Re2 {[%clk 0:00:19.9]} 34...
Rxe2+ {[%clk 0:00:02.4]} 35. Qxe2 {[%clk 0:00:20.8]} 35... Kh7 {[%clk
0:00:02.5]} 36. Qf3 {[%clk 0:00:20.5]} 36... a5 {[%clk 0:00:02.9]} 37. Qb7
{[%clk 0:00:20]} 37... Qe6 {[%clk 0:00:02.5]} 38. Qf3 {[%clk 0:00:19.2]} 38...
Qe7 {[%clk 0:00:02.4]} 39. Kf2 {[%clk 0:00:18.9]} 39... Qe6 {[%clk 0:00:02.7]}
40. Qe3 {[%clk 0:00:19]} 40... Qxe3+ {[%clk 0:00:02.4]} 41. Kxe3 {[%clk
0:00:19.9]} 41... Kg6 {[%clk 0:00:03.1]} 42. g4 {[%clk 0:00:19.6]} 42... h5
{[%clk 0:00:01.9]} 43. g5 {[%clk 0:00:18.3]} 43... Kf7 {[%clk 0:00:01.8]} 44. d4
{[%clk 0:00:18.3]} 44... g6 {[%clk 0:00:02.3]} 45. d5 {[%clk 0:00:18.2]} 45...
Ke7 {[%clk 0:00:02.2]} 46. Be5 {[%clk 0:00:17.9]} 1-0

[Event "*** Titled Tuesday Blitz"]
[Site "Chess.com"]
[Date "2021.02.16"]
[Round "6"]
[White "PavelShkapenko"]
[Black "Genghis_K"]
[Result "0-1"]
[WhiteElo "2701"]
[BlackElo "2908"]
[TimeControl "180+1"]
[EndTime "11:08:42 PST"]
[Termination "Genghis_K won by resignation"]

1. e4 {[%clk 0:03:00.9]} 1... c5 {[%clk 0:02:28.7]} 2. c3 {[%clk 0:02:59.3]}
2... Nf6 {[%clk 0:02:27.1]} 3. e5 {[%clk 0:02:59.5]} 3... Nd5 {[%clk 0:02:27.8]}
4. d4 {[%clk 0:03:00.2]} 4... cxd4 {[%clk 0:02:27.8]} 5. cxd4 {[%clk 0:03:01.1]}
5... d6 {[%clk 0:02:28]} 6. Nf3 {[%clk 0:03:00.5]} 6... Nc6 {[%clk 0:02:28.4]}
7. Bc4 {[%clk 0:03:00]} 7... dxe5 {[%clk 0:02:28.3]} 8. Nxe5 {[%clk 0:02:59.6]}
8... e6 {[%clk 0:02:27.1]} 9. O-O {[%clk 0:02:58.5]} 9... Be7 {[%clk 0:02:26.6]}
10. Nf3 {[%clk 0:02:58.2]} 10... O-O {[%clk 0:02:26.3]} 11. Nc3 {[%clk
0:02:58.8]} 11... Nxc3 {[%clk 0:02:21.5]} 12. bxc3 {[%clk 0:02:59.7]} 12... b6
{[%clk 0:02:21.7]} 13. Qe2 {[%clk 0:02:56.4]} 13... Bb7 {[%clk 0:02:20.3]} 14.
Bd3 {[%clk 0:02:56.7]} 14... Qd5 {[%clk 0:02:14.5]} 15. Rb1 {[%clk 0:02:56.3]}
15... Na5 {[%clk 0:02:07.5]} 16. Rb5 {[%clk 0:02:55.5]} 16... Qd6 {[%clk
0:02:03.2]} 17. Rh5 {[%clk 0:02:51.7]} 17... g6 {[%clk 0:02:00.6]} 18. Rh3
{[%clk 0:02:51.6]} 18... Bf6 {[%clk 0:01:59.6]} 19. Qe3 {[%clk 0:02:31.9]} 19...
Bg7 {[%clk 0:01:51.5]} 20. Qg5 {[%clk 0:02:31.8]} 20... Qd8 {[%clk 0:01:43.9]}
21. Qg4 {[%clk 0:02:27.2]} 21... Rc8 {[%clk 0:01:42.1]} 22. Bg5 {[%clk
0:02:26.6]} 22... Qd5 {[%clk 0:01:39.8]} 23. Qh4 {[%clk 0:02:17.6]} 23... h5
{[%clk 0:01:40.1]} 24. Bd2 {[%clk 0:02:16.5]} 24... Nc4 {[%clk 0:01:36.5]} 25.
Bc1 {[%clk 0:02:14.9]} 25... e5 {[%clk 0:01:34.1]} 26. Rg3 {[%clk 0:02:09.1]}
26... e4 {[%clk 0:01:27.8]} 27. Rg5 {[%clk 0:02:01.1]} 27... Qd8 {[%clk
0:01:17]} 28. Bxe4 {[%clk 0:01:57.2]} 28... Bxe4 {[%clk 0:01:08]} 29. Qxe4
{[%clk 0:01:57.1]} 29... Re8 {[%clk 0:01:08.8]} 30. Qd3 {[%clk 0:01:55.5]} 30...
Bf6 {[%clk 0:01:03.4]} 31. Rg3 {[%clk 0:01:46.4]} 31... Qd5 {[%clk 0:01:03.8]}
32. Bh6 {[%clk 0:01:35.7]} 32... Qe4 {[%clk 0:00:59.7]} 33. Qd1 {[%clk
0:01:26.4]} 33... Nd6 {[%clk 0:00:57.5]} 34. Bg5 {[%clk 0:01:20]} 34... Bg7
{[%clk 0:00:55.8]} 35. Ne5 {[%clk 0:00:57.9]} 35... Nf5 {[%clk 0:00:41.5]} 36.
Re1 {[%clk 0:00:44.3]} 36... Qd5 {[%clk 0:00:35.6]} 37. Rf3 {[%clk 0:00:44.4]}
37... f6 {[%clk 0:00:33.9]} 38. Nxg6 {[%clk 0:00:34.9]} 38... fxg5 {[%clk
0:00:33.6]} 39. Rxf5 {[%clk 0:00:35]} 39... Qxf5 {[%clk 0:00:33.1]} 40. Ne7+
{[%clk 0:00:35.2]} 40... Rxe7 {[%clk 0:00:32.9]} 41. Rxe7 {[%clk 0:00:36.1]}
41... Rxc3 {[%clk 0:00:27.8]} 42. h3 {[%clk 0:00:36.5]} 42... Qf4 {[%clk
0:00:26]} 43. Re8+ {[%clk 0:00:33]} 43... Bf8 {[%clk 0:00:22]} 44. Re1 {[%clk
0:00:32.4]} 44... Qf7 {[%clk 0:00:11.2]} 45. d5 {[%clk 0:00:31]} 45... Rc7
{[%clk 0:00:11]} 46. Re6 {[%clk 0:00:24.8]} 46... Qf4 {[%clk 0:00:09.6]} 47. Re1
{[%clk 0:00:23.4]} 47... Bc5 {[%clk 0:00:09.5]} 48. Qe2 {[%clk 0:00:22.6]} 48...
Re7 {[%clk 0:00:07.1]} 49. Qf1 {[%clk 0:00:22.8]} 49... Qxf2+ {[%clk 0:00:07.1]}
0-1

[Event "*** Titled Tuesday Blitz"]
[Site "Chess.com"]
[Date "2021.02.16"]
[Round "6"]
[White "davigator"]
[Black "KruHor"]
[Result "1-0"]
[WhiteElo "2374"]
[BlackElo "2516"]
[TimeControl "180+1"]
[EndTime "11:08:42 PST"]
[Termination "davigator won by resignation"]

1. e4 {[%clk 0:03:00.9]} 1... c5 {[%clk 0:02:58.8]} 2. Nf3 {[%clk 0:03:00.4]}
2... e6 {[%clk 0:02:58.1]} 3. d4 {[%clk 0:03:00.7]} 3... cxd4 {[%clk 0:02:57.6]}
4. Nxd4 {[%clk 0:03:01.2]} 4... a6 {[%clk 0:02:57.8]} 5. Bd3 {[%clk 0:02:59.4]}
5... b5 {[%clk 0:02:56.5]} 6. O-O {[%clk 0:02:52.5]} 6... Bb7 {[%clk 0:02:56.1]}
7. Qe2 {[%clk 0:02:52]} 7... Nc6 {[%clk 0:02:54.6]} 8. Nxc6 {[%clk 0:02:51.2]}
8... Bxc6 {[%clk 0:02:54.5]} 9. Bf4 {[%clk 0:02:44.4]} 9... Ne7 {[%clk
0:02:53.2]} 10. c4 {[%clk 0:02:36.4]} 10... Ng6 {[%clk 0:02:52.3]} 11. Bg3
{[%clk 0:02:35.1]} 11... h5 {[%clk 0:02:51.4]} 12. h3 {[%clk 0:02:32.9]} 12...
b4 {[%clk 0:02:47.1]} 13. Nd2 {[%clk 0:02:29.9]} 13... Bc5 {[%clk 0:02:46.1]}
14. Nb3 {[%clk 0:02:28.7]} 14... Ba7 {[%clk 0:02:43.8]} 15. Bd6 {[%clk
0:02:27.2]} 15... Qg5 {[%clk 0:02:37.5]} 16. c5 {[%clk 0:02:24.2]} 16... Bb8
{[%clk 0:02:31.1]} 17. Nd4 {[%clk 0:01:58.6]} 17... Bxd6 {[%clk 0:02:20.6]} 18.
cxd6 {[%clk 0:01:57.5]} 18... Qc5 {[%clk 0:01:53.1]} 19. Nxc6 {[%clk 0:01:55.5]}
19... Qxc6 {[%clk 0:01:50]} 20. e5 {[%clk 0:01:54.2]} 20... Nf4 {[%clk
0:01:45.5]} 21. Qe4 {[%clk 0:01:53.8]} 21... Qxe4 {[%clk 0:01:40.7]} 22. Bxe4
{[%clk 0:01:53.9]} 22... Rc8 {[%clk 0:01:39.9]} 23. Kh2 {[%clk 0:01:47.5]} 23...
f6 {[%clk 0:01:37.7]} 24. g3 {[%clk 0:01:45.3]} 24... Ne2 {[%clk 0:01:33]} 25.
f4 {[%clk 0:01:37.5]} 25... h4 {[%clk 0:01:29.3]} 26. g4 {[%clk 0:01:34.4]}
26... fxe5 {[%clk 0:01:19.9]} 27. fxe5 {[%clk 0:01:30.1]} 27... Rc5 {[%clk
0:01:19.5]} 28. Bg6+ {[%clk 0:01:28.5]} 28... Kd8 {[%clk 0:01:18.6]} 29. Rae1
{[%clk 0:01:24.2]} 29... Nd4 {[%clk 0:01:02.2]} 30. Rf4 {[%clk 0:01:20.1]} 30...
Nc6 {[%clk 0:01:01.1]} 31. Rfe4 {[%clk 0:01:19]} 31... Rf8 {[%clk 0:01:00]} 32.
Kg2 {[%clk 0:01:17.3]} 32... Rc2+ {[%clk 0:00:59]} 33. R1e2 {[%clk 0:01:15.3]}
33... Rc1 {[%clk 0:00:55.6]} 34. Re1 {[%clk 0:01:14.8]} 34... Rc2+ {[%clk
0:00:54.5]} 35. R4e2 {[%clk 0:01:14.8]} 35... Rc5 {[%clk 0:00:52.2]} 36. Bd3
{[%clk 0:01:09.4]} 36... a5 {[%clk 0:00:51.6]} 37. a3 {[%clk 0:00:44.1]} 37...
Rf4 {[%clk 0:00:50.5]} 38. a4 {[%clk 0:00:41.4]} 38... Kc8 {[%clk 0:00:48.9]}
39. Bb5 {[%clk 0:00:40.5]} 39... Nd4 {[%clk 0:00:46.7]} 40. Rf2 {[%clk
0:00:33.4]} 40... Rxf2+ {[%clk 0:00:45.7]} 41. Kxf2 {[%clk 0:00:33.6]} 41...
Nxb5 {[%clk 0:00:45]} 42. axb5 {[%clk 0:00:32.9]} 42... Kb7 {[%clk 0:00:38]} 43.
g5 {[%clk 0:00:31.4]} 43... Kb6 {[%clk 0:00:37.3]} 44. Kf3 {[%clk 0:00:30.1]}
44... a4 {[%clk 0:00:36.9]} 45. Kg4 {[%clk 0:00:29.9]} 45... Rxb5 {[%clk
0:00:35.1]} 46. Kxh4 {[%clk 0:00:29.4]} 46... a3 {[%clk 0:00:34.8]} 47. bxa3
{[%clk 0:00:28.4]} 47... bxa3 {[%clk 0:00:34.8]} 48. Kh5 {[%clk 0:00:29.1]}
48... a2 {[%clk 0:00:33.7]} 49. Ra1 {[%clk 0:00:29.1]} 49... Ra5 {[%clk
0:00:32.9]} 50. Kg6 {[%clk 0:00:29]} 50... Kc5 {[%clk 0:00:32.7]} 51. Kxg7
{[%clk 0:00:29]} 51... Kd5 {[%clk 0:00:32.6]} 52. Kf6 {[%clk 0:00:29.4]} 52...
Kc4 {[%clk 0:00:24.4]} 53. g6 {[%clk 0:00:29.4]} 53... Kb3 {[%clk 0:00:23.9]}
54. h4 {[%clk 0:00:27.6]} 54... Kb2 {[%clk 0:00:23.2]} 55. Rxa2+ {[%clk
0:00:26.8]} 55... Kxa2 {[%clk 0:00:23]} 56. h5 {[%clk 0:00:26.8]} 56... Kb3
{[%clk 0:00:22.4]} 57. h6 {[%clk 0:00:27]} 57... Kc4 {[%clk 0:00:22.2]} 58. h7
{[%clk 0:00:26.9]} 58... Ra8 {[%clk 0:00:21.3]} 59. g7 {[%clk 0:00:27.1]} 1-0